bitfinex-derivatives/quotes_BTCF0:USTF0_20250308
["timestamp","ask_amount","ask_price","bid_price","bid_amount"]
[1741405923208,0.1007,85949.0,85948.0,0.1163819]
[1741405923802,0.1007,85949.0,85946.0,0.1007]
[1741405924215,0.1007,85949.0,85930.0,0.14018]
[1741405924510,0.1163941,85939.0,85932.0,0.059566]
[1741405925113,0.1164023,85933.0,85932.0,0.00178298]
[1741405925304,0.4772023,85933.0,85932.0,0.0001224]
[1741405926105,0.5828023,85933.0,85932.0,0.0001224]
[1741405928211,0.4664,85933.0,85919.0,0.1]
[1741405928420,0.1164199,85920.0,85919.0,0.1]
[1741405929118,0.1164199,85920.0,85919.0,0.10011461]
[1741405929713,0.1164199,85920.0,85919.0,0.05808965]
[1741405930417,0.1164199,85920.0,85919.0,0.15808965]
[1741405931116,0.1164199,85920.0,85919.0,0.10013207]
[1741405932414,0.1164199,85920.0,85919.0,0.10027632]
[1741405933019,0.1017,85921.0,85919.0,0.10027632]
[1741405933217,0.1017,85921.0,85920.0,0.3608]
[1741405933418,0.2181185,85921.0,85920.0,0.1017]
[1741405934212,0.2181185,85921.0,85920.0,0.04374242]
[1741405934413,0.2181185,85921.0,85919.0,0.10027632]
[1741405934614,0.1164199,85920.0,85919.0,0.10027632]
[1741405935024,0.1164199,85920.0,85919.0,0.00027632]
[1741405935224,0.3283199,85920.0,85919.0,0.10027632]
[1741405937322,0.3283199,85920.0,85919.0,0.1]
[1741405937522,0.2119,85920.0,85919.0,0.1]
[1741405937829,0.1024,85920.0,85919.0,0.1]
[1741405938227,0.1024,85920.0,85919.0,0.10010387]
[1741405938622,0.1017,85921.0,85920.0,0.1164199]
[1741405938932,0.1017,85921.0,85920.0,0.2820199]
[1741405939131,0.1017,85921.0,85920.0,0.3930199]
[1741405939319,0.1017,85921.0,85920.0,0.2198]
[1741405939519,0.1017,85921.0,85920.0,0.3198]
[1741405939715,0.1017,85921.0,85920.0,0.3766]
[1741405940328,0.1017,85921.0,85920.0,0.43506232]
[1741405942217,0.00017456,85928.0,85927.0,0.3164104]
[1741405942428,0.00017456,85928.0,85927.0,0.6772104]
[1741405942627,0.00017456,85928.0,85927.0,0.5608]
[1741405943432,0.00017456,85928.0,85927.0,0.4608]
[1741405943731,0.00017456,85928.0,85927.0,0.6181]
[1741405944419,0.00017456,85928.0,85927.0,0.5613]
[1741405945029,0.20447456,85928.0,85927.0,0.5613]
[1741405945225,0.32088356,85928.0,85927.0,0.5613]
[1741405945432,0.32088356,85928.0,85927.0,0.4608]
[1741405945732,0.32088356,85928.0,85927.0,0.3608]
[1741405946419,0.1164126,85926.0,85924.0,0.1]
[1741405946616,0.2153,85925.0,85924.0,0.1]
[1741405948227,0.3317131,85925.0,85924.0,0.1]
[1741405948420,0.3317131,85925.0,85924.0,0.2]
[1741405949024,0.05099022,85920.0,85919.0,0.05731679]
[1741405949429,0.05099022,85920.0,85919.0,0.1]
[1741405949634,0.208,85921.0,85919.0,0.1]
[1741405949830,0.208,85920.0,85919.0,0.1]
[1741405950536,0.208,85920.0,85919.0,0.1001413]
[1741405950925,0.208,85920.0,85919.0,0.15939684]
[1741405953134,0.3244199,85920.0,85919.0,0.15939684]
[1741405954538,0.24444299,85920.0,85919.0,0.15939684]
[1741405955433,0.24444299,85920.0,85919.0,0.00143926]
[1741405955738,0.24444299,85920.0,85919.0,0.1]
[1741405955942,0.30265319,85920.0,85919.0,0.1]
[1741405956232,0.18623329,85920.0,85919.0,0.1582873]
[1741405956426,0.18623329,85920.0,85919.0,0.10009412]
[1741405958137,0.18623329,85920.0,85919.0,0.15934115]
[1741405958532,0.18623329,85920.0,85919.0,0.05924703]
[1741405958728,0.18623329,85920.0,85919.0,0.1]
[1741405958940,0.24444299,85920.0,85919.0,0.1]
[1741405959336,0.24444299,85920.0,85919.0,0.12732634]
[1741405959536,0.24444299,85920.0,85919.0,0.12747295]
[1741405959732,0.12802309,85920.0,85919.0,0.18482379]
[1741405960140,0.24444299,85920.0,85919.0,0.18482379]
[1741405961643,0.12802309,85920.0,85919.0,0.08482379]
[1741405961848,0.24444299,85920.0,85919.0,0.08482379]
[1741405962942,0.24444299,85920.0,85919.0,0.05749745]
[1741405963956,0.17900815,85920.0,85919.0,0.05749745]
[1741405964456,0.11357262,85920.0,85919.0,0.05749745]
[1741405964656,0.0582087,85922.0,85912.0,0.21143987]
[1741405964848,0.05821,85920.0,85913.0,0.08506258]
[1741405965047,0.116428,85914.0,85913.0,0.08506258]
[1741405965652,0.116428,85914.0,85913.0,0.08516647]
[1741405966457,0.1160884,85914.0,85913.0,0.08516647]
[1741405966652,0.1160884,85914.0,85913.0,0.18516647]
[1741405967051,0.2222884,85914.0,85913.0,0.18516647]
[1741405967361,0.1062,85914.0,85913.0,0.18516647]
[1741405967552,0.1062,85914.0,85913.0,0.12720889]
[1741405967747,0.222628,85914.0,85913.0,0.02720889]
[1741405968058,0.222628,85914.0,85913.0,0.12720889]
[1741405968258,0.222628,85914.0,85913.0,0.10010389]
[1741405970560,0.222628,85914.0,85913.0,0.04214631]
[1741405970753,0.222628,85914.0,85913.0,0.1]
[1741405971054,0.222628,85914.0,85913.0,0.10874807]
[1741405971756,0.222628,85914.0,85913.0,0.10886391]
[1741405973654,0.222628,85914.0,85913.0,0.00886391]
[1741405973859,0.222628,85914.0,85913.0,0.10886391]
[1741405976561,0.1062,85914.0,85913.0,0.10886391]
[1741405976856,0.1164134,85925.0,85920.0,0.1]
[1741405977061,0.108,85924.0,85921.0,0.2196]
[1741405977259,0.1164172,85922.0,85921.0,0.2196]
[1741405977765,0.108,85924.0,85921.0,0.21974333]
[1741405978265,0.2244155,85924.0,85921.0,0.21974333]
[1741405978564,0.1164165,85923.0,85921.0,0.21974333]
[1741405978761,0.1164172,85922.0,85921.0,0.21974333]
[1741405978957,0.2286172,85922.0,85921.0,0.21974333]
[1741405979667,0.2286172,85922.0,85921.0,0.16178575]
[1741405980463,0.2286172,85922.0,85921.0,0.11184333]
[1741405980872,0.1122,85922.0,85921.0,0.00014333]
[1741405981170,0.2286172,85922.0,85921.0,0.00014333]
[1741405982868,0.116425,85917.0,85914.0,0.24878575]
[1741405983068,0.2104,85916.0,85914.0,0.34878575]
[1741405983269,0.3268255,85916.0,85914.0,0.34878575]
[1741405983971,0.3268255,85916.0,85915.0,9.901e-05]
[1741405984367,0.3268255,85916.0,85915.0,0.10009901]
[1741405985568,0.3268255,85916.0,85915.0,9.901e-05]
[1741405985872,0.1164307,85912.0,85907.0,0.90354806]
[1741405986073,0.1164361,85908.0,85907.0,0.90354806]
[1741405986278,0.1164361,85908.0,85907.0,1.00354806]
[1741405986479,0.1164361,85908.0,85907.0,0.91248058]
[1741405986771,0.1164361,85908.0,85907.0,0.90354806]
[1741405986969,0.1164361,85908.0,85907.0,0.90366806]
[1741405987169,0.1164361,85908.0,85907.0,0.96143254]
[1741405987372,0.1164361,85908.0,85907.0,0.57724997]
[1741405987778,0.1164361,85908.0,85907.0,0.56836806]
[1741405988769,0.1164361,85908.0,85907.0,0.51041048]
[1741405989372,0.1164361,85908.0,85907.0,0.00012]
[1741405990066,0.1164361,85908.0,85907.0,0.00879009]
[1741405990871,0.1164361,85908.0,85907.0,0.00012]
[1741405991771,0.1164592,85891.0,85890.0,0.1086]
[1741405992077,0.1164727,85881.0,85880.0,0.14045492]
[1741405992282,0.1164727,85881.0,85871.0,0.0582]
[1741405992283,0.116501,85861.0,85860.0,0.25695562]
[1741405992475,0.05102707,85861.0,85860.0,0.2165007]
[1741405992777,0.05102707,85861.0,85860.0,0.10012999]
[1741405992976,0.05102707,85861.0,85860.0,0.00012999]
[1741405993168,0.18160338,85862.0,85860.0,0.00012999]
[1741405993481,0.1165004,85861.0,85860.0,0.00012999]
[1741405993674,0.2202004,85861.0,85860.0,0.00012999]
[1741405994278,0.2202004,85861.0,85860.0,0.05789157]
[1741405994866,0.1165189,85847.0,85846.0,0.05147241]
[1741405995082,0.1165189,85847.0,85846.0,0.27345933]
[1741405995280,0.1165189,85847.0,85846.0,0.2055]
[1741405996080,0.1165189,85847.0,85846.0,0.20561134]
[1741405996383,0.1165189,85847.0,85846.0,0.30791134]
[1741405996688,0.1165189,85847.0,85846.0,0.36662155]
[1741405996980,0.1616576,85850.0,85846.0,0.36662155]
[1741405997379,0.1165189,85847.0,85846.0,0.36662155]
[1741405997979,0.0776,85865.0,85846.0,0.30866397]
[1741405998170,0.0776,85865.0,85857.0,0.4608]
[1741405998171,0.1165039,85858.0,85857.0,0.4608]
[1741405998374,0.1097,85865.0,85857.0,0.5608]
[1741405998570,0.1097,85863.0,85857.0,0.5608]
[1741405998777,0.0582435,85871.0,85857.0,0.2]
[1741405998970,0.11666486,85869.0,85863.0,0.1]
[1741405999174,0.11666486,85869.0,85864.0,0.212]
[1741405999175,0.1097,85868.0,85864.0,0.212]
[1741405999371,0.00017466,85869.0,85864.0,0.212]
[1741405999570,0.00017466,85869.0,85868.0,0.3608]
[1741405999782,0.00017466,85869.0,85868.0,0.4608]
[1741406000177,0.00017466,85869.0,85868.0,0.5772904]
[1741406000378,0.00017466,85869.0,85868.0,0.6772904]
[1741406000577,0.00017466,85869.0,85868.0,0.5608]
[1741406000883,0.00017466,85869.0,85868.0,0.6772904]
[1741406001082,0.00017466,85869.0,85868.0,0.61933282]
[1741406001384,0.00017466,85869.0,85868.0,0.40284242]
[1741406003590,9.979e-05,85881.0,85875.0,0.11648]
[1741406003776,9.979e-05,85881.0,85877.0,0.1164777]
[1741406003777,0.10719979,85881.0,85877.0,0.1164777]
[1741406004086,0.10719979,85881.0,85880.0,0.05851652]
[1741406004989,0.10719979,85881.0,85880.0,0.15851652]
[1741406004990,9.979e-05,85881.0,85880.0,0.15851652]
[1741406005286,9.979e-05,85881.0,85880.0,0.37341652]
[1741406005478,9.979e-05,85881.0,85880.0,0.47341652]
[1741406006190,9.979e-05,85881.0,85880.0,0.47246368]
[1741406006383,0.10379979,85881.0,85880.0,0.37246368]
[1741406007090,0.10379979,85881.0,85880.0,0.27246368]
[1741406008085,0.22027249,85881.0,85880.0,0.37246368]
[1741406008386,0.1164863,85871.0,85868.0,0.30284242]
[1741406008580,0.3608,85869.0,85865.0,0.00013776]
[1741406008786,0.1164931,85866.0,85865.0,0.00013776]
[1741406009100,0.4772931,85866.0,85865.0,0.10013776]
[1741406009588,0.4772931,85866.0,85865.0,0.00013776]
[1741406010185,0.4772931,85866.0,85853.0,0.1051]
[1741406010186,0.1165078,85856.0,85853.0,0.14745484]
[1741406010387,0.2241082,85855.0,85853.0,0.14745484]
[1741406010586,0.3288082,85855.0,85853.0,0.25505484]
[1741406011191,0.3288082,85855.0,85854.0,0.00011829]
[1741406011786,0.3288082,85855.0,85854.0,0.10771829]
[1741406013196,0.3288082,85855.0,85854.0,0.04976071]
[1741406013394,0.3288082,85855.0,85854.0,0.15766071]
[1741406013797,0.3288082,85855.0,85854.0,0.1079]
[1741406014197,0.3288082,85855.0,85854.0,0.1080329]
[1741406014496,0.2123,85855.0,85854.0,0.1080329]
[1741406014691,0.2123,85855.0,85854.0,0.2245423]
[1741406015089,0.1076,85855.0,85854.0,0.2245423]
[1741406015290,0.1076,85855.0,85854.0,0.1080329]
[1741406015894,0.1076,85855.0,85854.0,0.2245423]
[1741406016199,0.1076,85855.0,85854.0,0.05007532]
[1741406016390,0.1076,85855.0,85854.0,0.15437532]
[1741406016790,0.04211914,85855.0,85854.0,0.27088472]
[1741406016990,0.04211914,85855.0,85854.0,0.15437532]
[1741406017992,0.04211914,85855.0,85854.0,0.27088472]
[1741406018201,0.04211914,85855.0,85854.0,0.15437532]
[1741406019201,0.04211914,85855.0,85854.0,0.09641774]
[1741406019388,0.04211914,85855.0,85853.0,0.1]
[1741406019592,0.1013,85854.0,85853.0,0.1]
[1741406019793,0.2087,85854.0,85853.0,0.1]
[1741406020294,0.2087,85854.0,85853.0,0.10011122]
[1741406021000,0.3142,85854.0,85853.0,0.10011122]
[1741406022198,0.3142,85854.0,85853.0,0.00011122]
[1741406022399,0.3142,85854.0,85853.0,0.10011122]
[1741406022599,0.4307094,85854.0,85853.0,0.00011122]
[1741406022800,0.4307094,85854.0,85853.0,0.10011122]
[1741406024393,0.3252094,85854.0,85853.0,0.10011122]
[1741406025293,0.3252094,85854.0,85853.0,0.1]
[1741406026395,0.3252094,85854.0,85853.0,0.10014638]
[1741406027204,0.2087,85854.0,85853.0,0.21665708]
[1741406028001,0.2087,85854.0,85853.0,0.41805708]
[1741406029103,0.2087,85854.0,85853.0,0.30154638]
[1741406029602,0.2087,85854.0,85853.0,0.10014638]
[1741406030301,0.2087,85854.0,85853.0,0.21665708]
[1741406030492,0.00060001,85861.0,85860.0,0.1165012]
[1741406030698,0.1041,85868.0,85860.0,0.3165012]
[1741406030902,0.1164945,85865.0,85861.0,0.1021]
[1741406031210,0.1164935,85866.0,85861.0,0.1021]
[1741406031506,0.1164999,85861.0,85860.0,0.2]
[1741406031699,0.4772999,85861.0,85860.0,0.1]
[1741406032203,0.4772999,85861.0,85853.0,0.00014638]
[1741406032204,0.3608,85861.0,85853.0,0.00014638]
[1741406032397,0.1165094,85854.0,85853.0,0.00014638]
[1741406033607,0.1092,85854.0,85853.0,0.00014638]
[1741406034106,0.2257094,85854.0,85853.0,0.00014638]
[1741406034309,0.2257094,85854.0,85851.0,0.00071635]
[1741406034500,0.1066,85853.0,85849.0,0.1024]
[1741406034705,0.1066,85853.0,85850.0,0.1]
[1741406034893,0.1092,85852.0,85850.0,0.1]
[1741406035300,0.1066,85851.0,85850.0,0.2024]
[1741406035698,0.1066,85851.0,85850.0,0.31901378]
[1741406035904,0.1066,85851.0,85850.0,0.37644067]
[1741406036907,0.1066,85851.0,85850.0,0.25992587]
[1741406037398,0.1066,85851.0,85850.0,0.15992587]
[1741406037901,0.1066,85851.0,85850.0,0.25992587]
[1741406038095,0.02656286,85851.0,85850.0,0.25992587]
[1741406039205,0.07027793,85852.0,85850.0,0.35992587]
[1741406039409,0.1165114,85853.0,85850.0,0.35992587]
[1741406039611,0.1165114,85853.0,85851.0,0.1053]
[1741406039911,0.1102,85857.0,85851.0,0.321813]
[1741406040206,0.1684528,85857.0,85852.0,0.1036]
[1741406040396,0.1165098,85854.0,85852.0,0.04564242]
[1741406040598,0.1165098,85854.0,85853.0,0.1053]
[1741406041611,0.05102488,85854.0,85853.0,0.1053]
[1741406042612,0.1165085,85855.0,85853.0,0.1053]
[1741406042915,0.1165085,85855.0,85854.0,0.08498772]
[1741406043415,0.1165085,85855.0,85854.0,0.02703014]
[1741406043602,0.1102,85857.0,85854.0,0.02703014]
[1741406043803,0.1102,85857.0,85856.0,0.1165067]
[1741406044110,0.1102,85857.0,85856.0,0.1]
[1741406044310,0.1102,85857.0,85856.0,0.2029]
[1741406045099,0.1102,85857.0,85856.0,0.28772002]
[1741406045606,0.2267053,85857.0,85856.0,0.28772002]
[1741406045906,0.1102,85857.0,85856.0,0.28772002]
[1741406046499,0.1102,85857.0,85856.0,0.18772002]
[1741406046713,0.03016494,85857.0,85856.0,0.28772002]
[1741406046912,0.14667024,85857.0,85856.0,0.28772002]
[1741406047113,0.03016494,85857.0,85856.0,0.28772002]
[1741406047506,0.0582485,85864.0,85856.0,0.28772002]
[1741406047907,0.1164958,85864.0,85863.0,0.1]
[1741406048420,0.1164958,85864.0,85863.0,0.18482002]
[1741406048616,0.1164958,85864.0,85863.0,0.08482002]
[1741406049012,0.4772958,85864.0,85863.0,0.08482002]
[1741406049621,0.4772958,85864.0,85863.0,0.02686244]
[1741406050209,0.1165053,85857.0,85856.0,0.1029]
[1741406051213,0.1165094,85854.0,85853.0,0.1165103]
[1741406051416,0.05102624,85854.0,85853.0,0.1165103]
[1741406051816,0.05102624,85854.0,85851.0,0.1067]
[1741406052015,0.05102624,85854.0,85851.0,0.2067]
[1741406052410,0.1087,85853.0,85851.0,0.2067]
[1741406052615,0.2113,85853.0,85851.0,0.14874242]
[1741406052922,0.1165121,85852.0,85851.0,0.14874242]
[1741406053117,0.2113,85853.0,85850.0,0.05752587]
[1741406053424,0.2191134,85851.0,85850.0,0.05752587]
[1741406053923,0.21903563,85851.0,85850.0,0.05752587]
[1741406055617,0.1026,85851.0,85848.0,0.47096829]
[1741406055815,0.1165162,85849.0,85848.0,0.2106]
[1741406056016,0.1165162,85849.0,85848.0,0.6714]
[1741406056624,0.1165162,85849.0,85848.0,0.6714926]
[1741406056829,0.1165162,85849.0,85848.0,0.2000926]
[1741406057029,0.5776162,85849.0,85848.0,0.1000926]
[1741406057326,0.5776162,85849.0,85848.0,0.15939369]
[1741406057922,0.2168162,85849.0,85848.0,0.15939369]
[1741406058623,0.2168162,85849.0,85848.0,0.05930109]
[1741406058827,0.1003,85849.0,85845.0,0.326021]
[1741406059022,0.1003,85849.0,85846.0,0.1]
[1741406059023,0.1107,85848.0,85846.0,0.1]
[1741406059330,0.01610653,85848.0,85846.0,0.1]
[1741406059534,0.01610653,85848.0,85847.0,0.2065]
[1741406059823,0.01610653,85848.0,85847.0,0.26354433]
[1741406060233,0.01610653,85848.0,85847.0,0.38006323]
[1741406060621,0.01610653,85848.0,85847.0,0.48006323]
[1741406061321,0.17582961,85853.0,85847.0,0.48006323]
[1741406061715,0.17582961,85853.0,85847.0,0.43063061]
[1741406062025,0.1096,85852.0,85847.0,0.31411171]
[1741406062220,0.1165145,85851.0,85847.0,0.31411171]
[1741406062621,0.1096,85850.0,85847.0,0.31411171]
[1741406063224,0.1096,85850.0,85847.0,0.30558675]
[1741406063626,0.1096,85850.0,85847.0,0.40558675]
[1741406064224,0.0295592,85850.0,85847.0,0.40558675]
[1741406064621,0.0295592,85850.0,85847.0,0.34762917]
[1741406064821,0.0295592,85850.0,85849.0,0.1165162]
[1741406065626,0.0295592,85850.0,85848.0,0.1165174]
[1741406065825,0.0295592,85850.0,85848.0,0.2165174]
[1741406066021,0.0295592,85850.0,85849.0,0.1165162]
[1741406066329,0.0295592,85850.0,85847.0,0.27356283]
[1741406066632,0.0295592,85850.0,85848.0,0.1]
[1741406067734,0.0295592,85850.0,85847.0,0.27356283]
[1741406067935,0.0295592,85850.0,85848.0,0.2107]
[1741406068935,0.0295592,85850.0,85849.0,0.1165162]
[1741406069236,0.0295592,85850.0,85848.0,0.3272169]
[1741406069730,0.0295592,85850.0,85848.0,0.4272169]
[1741406070734,0.0295592,85850.0,85848.0,0.36925932]
[1741406071238,0.0295592,85850.0,85849.0,0.1165162]
[1741406071436,0.1102,85860.0,85848.0,0.15274242]
[1741406071633,0.1165126,85852.0,85848.0,0.25274242]
[1741406071832,0.1165109,85853.0,85848.0,0.46925952]
[1741406072330,0.08841524,85860.0,85848.0,0.35274242]
[1741406072539,0.1165053,85857.0,85851.0,0.1165131]
[1741406072735,0.08841524,85860.0,85852.0,0.3144]
[1741406072930,0.08841524,85860.0,85852.0,0.4144]
[1741406073137,0.3608,85861.0,85852.0,0.4144]
[1741406073638,0.4772999,85861.0,85855.0,0.1165073]
[1741406073824,0.116503,85859.0,85852.0,0.3083]
[1741406074029,0.116503,85859.0,85853.0,0.1165098]
[1741406074441,0.47790071,85861.0,85854.0,0.1165084]
[1741406074639,0.1016,85860.0,85855.0,0.1165079]
[1741406075334,0.1016,85860.0,85855.0,0.1165077]
[1741406075335,0.2181018,85860.0,85855.0,0.1165077]
[1741406075535,0.2181018,85860.0,85854.0,0.1165084]
[1741406075732,0.116504,85858.0,85852.0,0.201]
[1741406075939,0.1016,85857.0,85854.0,0.1]
[1741406076836,0.1016,85857.0,85854.0,0.2165091]
[1741406077938,0.1016,85857.0,85856.0,0.1165067]
[1741406078240,0.1016,85857.0,85856.0,0.2165067]
[1741406078940,0.00017466,85869.0,85868.0,0.1164904]
[1741406079141,0.00017466,85869.0,85868.0,0.5608]
[1741406079437,0.11666366,85869.0,85868.0,0.1]
[1741406080239,0.116489,85869.0,85868.0,0.1]
[1741406082236,0.227089,85869.0,85868.0,0.1]
[1741406082833,0.227089,85869.0,85868.0,0.04204242]
[1741406083038,0.227089,85869.0,85864.0,0.2082]
[1741406083433,0.1065,85868.0,85864.0,0.2082]
[1741406083833,0.1106,85867.0,85864.0,0.2082]
[1741406084148,0.04512522,85867.0,85864.0,0.2082]
[1741406084338,0.1065,85866.0,85864.0,0.2082]
[1741406085330,0.1065,85866.0,85865.0,0.1057]
[1741406085535,0.1065,85866.0,85865.0,0.2221944]
[1741406085734,0.01192572,85866.0,85865.0,0.3249944]
[1741406085937,0.01192572,85866.0,85865.0,0.36703682]
[1741406087945,0.01192572,85866.0,85865.0,0.46703682]
[1741406088941,0.03740275,85870.0,85865.0,0.40907924]
[1741406089142,0.1022,85869.0,85865.0,0.40907924]
[1741406089841,0.1022,85869.0,85868.0,0.1164904]
[1741406090038,0.1022,85869.0,85865.0,0.3028]
[1741406090039,0.1022,85869.0,85866.0,0.1164927]
[1741406090239,0.36140001,85874.0,85867.0,0.1]
[1741406090441,0.1022,85873.0,85872.0,0.116485]
[1741406090639,0.1022,85873.0,85872.0,0.2]
[1741406090839,0.1022,85873.0,85872.0,0.1]
[1741406091043,0.2186836,85873.0,85872.0,0.2]
[1741406091239,0.2186836,85873.0,85872.0,0.1]
[1741406092246,0.3197836,85873.0,85872.0,0.1]
[1741406092439,0.2033,85873.0,85872.0,0.1]
[1741406092638,0.2033,85873.0,85872.0,0.15724979]
[1741406093142,0.3197836,85873.0,85872.0,0.15724979]
[1741406093651,0.3197836,85873.0,85872.0,0.06581717]
[1741406093652,0.25431348,85873.0,85872.0,0.06581717]
[1741406093843,0.25431348,85873.0,85872.0,0.1]
[1741406095140,0.1011,85873.0,85872.0,0.05897246]
[1741406095446,0.1011,85873.0,85871.0,0.1164853]
[1741406095639,0.1011,85873.0,85872.0,0.219585]
[1741406095949,0.1011,85873.0,85872.0,0.1031]
[1741406096145,0.1011,85873.0,85872.0,0.219625]
[1741406098138,0.02108397,85873.0,85872.0,0.16166742]
[1741406098740,0.1074,85876.0,85874.0,0.116482]
[1741406098940,0.00017466,85877.0,85876.0,0.1164795]
[1741406099140,0.00017466,85877.0,85876.0,0.2164795]
[1741406100143,0.00017466,85877.0,85876.0,0.3164795]
[1741406101047,0.00017466,85877.0,85876.0,0.25852192]
[1741406101250,0.11665286,85877.0,85876.0,0.306]
[1741406101441,0.32505286,85877.0,85876.0,0.1]
[1741406102041,0.32509286,85877.0,85876.0,0.1]
[1741406103150,0.32509286,85877.0,85875.0,8.341e-05]
[1741406103151,0.1164795,85876.0,85875.0,8.341e-05]
[1741406103541,0.3345795,85876.0,85875.0,0.10008341]
[1741406103744,0.3345795,85876.0,85875.0,8.341e-05]
[1741406104151,0.1164836,85873.0,85872.0,0.00143946]
[1741406104352,0.1164809,85875.0,85874.0,0.1]
[1741406104652,0.3345809,85875.0,85874.0,0.1]
[1741406105340,0.3345809,85875.0,85874.0,0.1001285]
[1741406106053,0.33443578,85875.0,85874.0,0.1001285]
[1741406107555,0.26896326,85875.0,85874.0,0.1001285]
[1741406108548,0.18894218,85875.0,85874.0,0.1001285]
[1741406108755,0.30542308,85875.0,85874.0,0.1001285]
[1741406109956,0.30542308,85875.0,85874.0,0.2042285]
[1741406110259,0.30542308,85875.0,85874.0,0.1041]
[1741406110651,0.18894218,85875.0,85874.0,0.1041]
[1741406110957,0.18894218,85875.0,85874.0,0.2148]
[1741406111153,0.18894218,85875.0,85874.0,0.21488802]
[1741406112458,0.30542308,85875.0,85874.0,0.21488802]
[1741406113149,0.30542308,85875.0,85874.0,0.15693044]
[1741406114354,0.30542308,85875.0,85874.0,0.26573044]
[1741406114860,0.18894218,85875.0,85874.0,0.26573044]
[1741406116254,0.18894218,85875.0,85874.0,0.20777286]
[1741406116654,0.30542308,85875.0,85874.0,0.20777286]
[1741406116852,0.18894218,85875.0,85874.0,0.20777286]
[1741406117564,0.1089264,85875.0,85874.0,0.21640864]
[1741406119155,0.1089264,85875.0,85874.0,0.32310864]
[1741406119352,0.1089264,85875.0,85874.0,0.26515106]
[1741406119763,0.04345845,85875.0,85874.0,0.26515106]
[1741406120463,0.00021466,85877.0,85876.0,0.1164795]
[1741406121165,0.00017466,85877.0,85876.0,0.3292795]
[1741406121351,0.00021466,85877.0,85876.0,0.2128]
[1741406121557,0.00021466,85877.0,85876.0,0.3292795]
[1741406121862,0.1164704,85883.0,85877.0,0.1164781]
[1741406122068,0.11024,85882.0,85880.0,0.1]
[1741406122256,0.21084,85882.0,85881.0,0.15094242]
[1741406122960,0.32164,85882.0,85881.0,0.15094242]
[1741406123266,0.21144,85882.0,85881.0,0.15094242]
[1741406123768,4e-05,85882.0,85881.0,0.26741512]
[1741406123962,4e-05,85882.0,85881.0,0.46061512]
[1741406124167,0.3608,85885.0,85884.0,0.1164687]
[1741406124769,0.3608,85885.0,85881.0,0.56061462]
[1741406125065,0.2054,85884.0,85881.0,0.56061462]
[1741406125466,0.2054,85884.0,85881.0,0.38618484]
[1741406125966,0.12538848,85884.0,85881.0,0.38618484]
[1741406126269,0.11647,85883.0,85882.0,0.1106]
[1741406126569,0.12538848,85884.0,85882.0,0.1106]
[1741406126766,0.104,85883.0,85882.0,0.1106]
[1741406127468,0.22047,85883.0,85882.0,0.1106]
[1741406128367,0.22047,85883.0,85882.0,0.05264242]
[1741406129364,0.0582357,85882.0,85877.0,0.1099]
[1741406129570,0.1164768,85878.0,85877.0,0.1099]
[1741406129767,0.05101166,85878.0,85877.0,0.1099]
[1741406130570,0.51751166,85878.0,85877.0,0.1099]
[1741406130964,0.51751166,85878.0,85877.0,0.19486351]
[1741406131267,0.62821166,85878.0,85877.0,0.19486351]
[1741406131472,0.62821166,85878.0,85877.0,0.13690593]
[1741406132773,0.62821166,85878.0,85877.0,0.08496351]
[1741406133374,0.56274107,85878.0,85877.0,0.08496351]
[1741406133569,0.67921787,85878.0,85877.0,0.08496351]
[1741406134473,0.67921787,85878.0,85877.0,0.02700593]
[1741406135177,0.1164795,85876.0,85875.0,0.108]
[1741406136276,0.56274107,85878.0,85874.0,8.802e-05]
[1741406136476,0.2175809,85875.0,85874.0,8.802e-05]
[1741406136978,0.2175809,85875.0,85874.0,0.00864105]
[1741406137480,0.1011,85875.0,85873.0,0.05868347]
[1741406137677,0.1011,85875.0,85872.0,0.16235162]
[1741406137678,0.1164836,85873.0,85872.0,0.16235162]
[1741406138466,0.1164836,85873.0,85872.0,0.16246382]
[1741406139474,0.1164836,85873.0,85872.0,0.0001122]
[1741406139878,0.1164836,85873.0,85872.0,0.00891838]
[1741406140085,0.06410532,85873.0,85872.0,0.0001122]
[1741406140375,0.1164836,85873.0,85872.0,0.0001122]
[1741406140684,0.1164904,85868.0,85867.0,0.05237462]
[1741406140975,0.05101675,85868.0,85867.0,0.05237462]
[1741406141776,0.05101675,85868.0,85867.0,0.052497]
[1741406143685,0.1164931,85866.0,85863.0,0.1164966]
[1741406144275,0.1164931,85866.0,85860.0,0.11662506]
[1741406144477,0.1164931,85866.0,85861.0,0.1023]
[1741406144677,0.1164931,85866.0,85865.0,0.00018284]
[1741406145787,0.1164931,85866.0,85865.0,0.05701922]
[1741406146687,0.1164931,85866.0,85861.0,0.58857043]
[1741406146880,0.1048,85865.0,85862.0,0.1]
[1741406147583,0.1048,85865.0,85863.0,9.832e-05]
[1741406148489,0.02477664,85865.0,85863.0,9.832e-05]
[1741406149079,0.00017466,85872.0,85871.0,0.1164863]
[1741406149284,8e-05,85881.0,85878.0,0.1164768]
[1741406149583,8e-05,85881.0,85878.0,0.2164768]
[1741406149780,8e-05,85881.0,85878.0,0.15851922]
[1741406149982,0.1165538,85881.0,85878.0,0.1]
[1741406150188,8e-05,85881.0,85878.0,0.1]
[1741406150380,0.1165141,85880.0,85878.0,0.1]
[1741406150682,0.1164741,85880.0,85878.0,0.1]
[1741406150992,0.1165141,85880.0,85878.0,0.1]
[1741406151703,0.107,85879.0,85878.0,0.1]
[1741406152790,4e-05,85880.0,85877.0,4e-05]
[1741406153091,4e-05,85880.0,85878.0,0.1164763]
[1741406154594,4e-05,85880.0,85879.0,0.1164755]
[1741406154781,4e-05,85880.0,85879.0,0.2207755]
[1741406155287,0.1084,85886.0,85885.0,0.1164673]
[1741406155489,0.1084,85886.0,85885.0,0.2164673]
[1741406155687,0.1084,85886.0,85885.0,0.1]
[1741406155891,0.224866,85886.0,85885.0,0.1]
[1741406156190,0.26270561,85886.0,85885.0,0.2004]
[1741406156693,0.18269846,85886.0,85885.0,0.1004]
[1741406158395,0.1033,85886.0,85885.0,0.15781728]
[1741406158589,0.1033,85886.0,85885.0,0.27428458]
[1741406158787,0.1033,85886.0,85885.0,0.0998597]
[1741406159794,0.2097,85886.0,85885.0,0.0998597]
[1741406161288,0.2097,85886.0,85885.0,0.216327]
[1741406161697,0.2097,85886.0,85885.0,0.0998597]
[1741406161901,0.2097,85886.0,85884.0,0.11538975]
[1741406162798,0.2097,85886.0,85884.0,0.17237646]
[1741406164396,0.326166,85886.0,85884.0,0.17237646]
[1741406164889,0.326166,85886.0,85884.0,0.11441888]
[1741406165394,0.2097,85886.0,85885.0,0.1107]